{"text_format":"3","workbook":"xlsx","n_sheets":1,"sheets":["7-11 "],"read":"whole","date_system":"1900"}

{"sheet":"7-11 ","index":0,"n_rows":75,"n_cols":22,"rows_kept":75}
["№","Район","Код участника","Название ОУ(полное)","СНИЛС","Фамилия","Имя","Отчество","Пол","Дата рождения","Участник с ОВЗ","Класс","Класс участия","Балл","Добавлено баллов по итогам апелляции","Итоговый балл","Макс. балл","Статус","Призер республиканского / регионального этапа прошлого года","Учитель","Место работы учителя (полное)","Предмет"]
[1,"Сабинский","454006_16658662013_26","Муниципальное бюджетное общеобразовательное учреждение \"Юлбатская основная общеобразовательная школа Сабинского муниципального района Республики Татарстан\"",16658662013,"Тухбатуллин","Салим","Фанисович","м","2011-06-12","нет",7,7,26,null,{"$f":"N2","v":26},56,"участник","нет","Фаляхова Фирдания Габдулхаковна","Муниципальное бюджетное общеобразовательное учреждение \"Юлбатская основная общеобразовательная школа Сабинского муниципального района Республики Татарстан\"","География"]
[2,"Сабинский","454014_16407764578_26","муниципальное бюджетное общеобразовательное учреждение \"Кильдебякская средняя общеобразовательная школа Сабинского муниципального района Республики Татарстан\"",16407764578,"Кашапов","Фаргат","Назипович","м","2011-02-11","нет",7,7,20,null,{"$f":"N3","v":20},56,"участник","нет","Мухарлямов Ренат Габдуллович","муниципальное бюджетное общеобразовательное учреждение \"Кильдебякская средняя общеобразовательная школа Сабинского муниципального района Республики Татарстан\"","География"]
[3,"Сабинский","452012_20637820454_26","Муниципальное бюджетное общеобразовательное учреждение \"Лесхозская средняя общеобразовательная школа Сабинского муниципального района Республики Татарстан\"",20637820454,"Давлиева","Рузиля","Нурихановна","ж","2010-11-03","нет",7,7,12,null,12,56,"участник","нет","Шаймиева\n Айгуль\n Тагировна","Муниципальное бюджетное общеобразовательное учреждение \"Лесхозская средняя общеобразовательная школа Сабинского муниципального района Республики Татарстан\"","География"]
[4,"Сабинский","451024_16462457479_26","Муниципальное бюджетное общеобразовательное учреждение \"Сабинская средняя общеобразовательная школа Сабинского муниципального района Республики Татарстан\"",16462457479,"Назмиев","Булат","Ниязович","м","2011-03-18","нет",7,7,27,null,27,56,"участник","нет","Аглямзянова Рамзия василовна","Муниципальное бюджетное общеобразовательное учреждение \"Сабинская средняя общеобразовательная школа Сабинского муниципального района Республики Татарстан\"","География"]
[5,"Сабинский","451024_17863482620_26","Муниципальное бюджетное общеобразовательное учреждение \"Сабинская средняя общеобразовательная школа Сабинского муниципального района Республики Татарстан\"",17863482620,"Даминов","Самир","Русланович","м","2011-03-15","нет",7,7,24,null,24,56,"участник","нет","Аглямзянова Рамзия василовна","Муниципальное бюджетное общеобразовательное учреждение \"Сабинская средняя общеобразовательная школа Сабинского муниципального района Республики Татарстан\"","География"]
[6,"Сабинский","454021_16539852105_26","Муниципальное бюджетное общеобразовательное учреждение \"Большешинарская  средняя общеобразовательная школа имени А.А. Ахунзянова Сабинского муниципального района Республики Татарстан\"",16539852105,"Ахметов","Адель","Раилевич","м","2011-04-13","нет",7,7,26,null,26,56,"участник","нет","Мухаметова Резеда Рашидовна","Муниципальное бюджетное общеобразовательное учреждение \"Большешинарская  средняя общеобразовательная школа имени А.А. Ахунзянова Сабинского муниципального района Республики Татарстан\"","География"]
[7,"Сабинский","454015_16430541945_26","Муниципальное бюджетное общеобразовательное учреждение \"Иштуганская средняя общеобразовательная школа Сабинского муниципального района Республики Татарстан\"",16430541945,"Табишев","Тимерхан","Тимурович","м","2011-02-25","нет",7,7,15,null,15,56,"участник","нет","Макаров Анатолий Владимирович","Муниципальное бюджетное общеобразовательное учреждение \"Иштуганская средняя общеобразовательная школа Сабинского муниципального района Республики Татарстан\"","География"]
[8,"Сабинский","454009_16798726549_26","Муниципальное бюджетное общеобразовательное учреждение \"Сатышевская средняя общеобразовательная школа Сабинского муниципального района Республики Татарстан им. Ш.З.Зиннурова\"",16798726549,"Садиков","Зульфат","Ильфирович","м","2011-08-15","нет",7,7,14,null,14,56,"участник","нет","Хасанова Венера Ризвановна","Муниципальное бюджетное общеобразовательное учреждение \"Сатышевская средняя общеобразовательная школа Сабинского муниципального района Республики Татарстан им. Ш.З.Зиннурова\"","География"]
[9,"Сабинский","454008_16364141657_26","Муниципальное бюджетное общеобразовательное учреждение \"Тимершикская средняя общеобразовательная школа Сабинского муниципального района Республики Татарстан\"",16364141657,"Тухбатуллина","Эндже","Фаниловна","ж","2011-01-03","нет",7,7,7,null,7,56,"участник","нет","Халилова Диляра Ильнаровна","Муниципальное бюджетное общеобразовательное учреждение \"Тимершикская средняя общеобразовательная школа Сабинского муниципального района Республики Татарстан\"","География"]
[10,"Сабинский","454022_16830506062_26","Муниципальное бюджетное общеобразовательное учреждение \"Большеарташская основная общеобразовательная школа Сабинского муниципального района Республики Татарстан\"",16830506062,"Гаянов","Карим","Ирекович","м","2011-09-30","нет",7,7,32,null,32,56,"участник","нет","Аглямзянова Рамзия Василовна","Муниципальное бюджетное общеобразовательное учреждение \"Большеарташская основная общеобразовательная школа Сабинского муниципального района Республики Татарстан\"","География"]
[11,"Сабинский","451002_16370996600_26","Муниципальное бюджетное общеобразовательное учреждение «Центр образования «ОНИКС» для одаренных детей» Сабинского муниципального района Республики Татарстан","163-709-966 00","Фатыхов","Анвар","Ниязович","м","2011-01-23","нет",7,7,40.5,null,40.5,56,"победитель","нет","Гумерова Раушания Рифмировна","Муниципальное бюджетное общеобразовательное учреждение «Центр образования «ОНИКС» для одаренных детей» Сабинского муниципального района Республики Татарстан","География"]
[12,"Сабинский","454020_16845533500_26","Муниципальное бюджетное общеобразовательное учреждение \"Большекибячинская средняя общеобразовательная школа Сабинского муниципального района Республики Татарстан\"",16845533500,"Хайруллина","Азалия","Рамилевна","ж","2011-09-27","нет",7,7,32,null,32,56,"участник","нет","Сафина Сирина Закизяновна","Муниципальное бюджетное общеобразовательное учреждение \"Большекибячинская средняя общеобразовательная школа Сабинского муниципального района Республики Татарстан\"","География"]
[13,"Сабинский","454007_17113415122_26","Муниципальное бюджетное общеобразовательное учреждение \"Шикшинская основная общеобразовательная школа Сабинского муниципального района Республики Татарстан\"",17113415122,"Хусаенова","Алия","Рамазановна","ж","2012-03-30","нет",7,7,24.5,null,24.5,56,"участник","нет","Амиров Фаиль Мияссарович","Муниципальное бюджетное общеобразовательное учреждение \"Шикшинская основная общеобразовательная школа Сабинского муниципального района Республики Татарстан\"","География"]
[14,"Сабинский","454011_16593312483_26","Муниципальное бюджетное общеобразовательное учреждение \"Нижнешитцинская основная общеобразовательная школа Сабинского муниципального района Республики Татарстан\"",16593312483,"Камалова","Камиля","Талгатовна","ж","2011-05-12","нет",7,7,37.5,null,37.5,56,"призер","нет","Фаляхова Фирдания Габдулхаковна","Муниципальное бюджетное общеобразовательное учреждение \"Нижнешитцинская основная общеобразовательная школа Сабинского муниципального района Республики Татарстан\"","География"]
[15,"Сабинский","454019_16523370455_26","Муниципальное бюджетное общеобразовательное учреждение \"Верхнесиметская средняя общеобразовательная школа Сабинского муниципального района Республики Татарстан\"",16523370455,"Шамилова","Марьям","Айдаровна","ж","2011-04-04","нет",7,7,22.5,null,22.5,56,"участник","нет","Шафигуллина Аниса Габдулхамитовна","Муниципальное бюджетное общеобразовательное учреждение \"Верхнесиметская средняя общеобразовательная школа Сабинского муниципального района Республики Татарстан\"","География"]
[16,"Сабинский","454017_16618545288_26","Муниципальное бюджетное общеобразовательное учреждение \"Изминская средняя общеобразовательная школа Сабинского муниципального района Республики Татарстан\"","166-185-452 88","Димитриев ","Артур","Владиславович","м","2011-05-07","нет",7,7,33.5,null,33.5,56,"призер","нет","Каримуллина Эльвира Талгатовна","Муниципальное бюджетное общеобразовательное учреждение \"Изминская средняя общеобразовательная школа Сабинского муниципального района Республики Татарстан\"","География"]
[17,"Сабинский","454016_16360921158_26","государственное бюджетное общеобразовательное учреждение \"Икшурминская кадетская школа-интернат имени Байкиева К.С.\"",16360921158,"Шавалиев ","Фанияр","Нурфаязович","м","2011-01-14","нет",7,7,17,null,17,56,"участник","нет","Кабирова Гузелия Саматовна","государственное бюджетное общеобразовательное учреждение \"Икшурминская кадетская школа-интернат имени Байкиева К.С.\"","География"]
[18,"Сабинский","451001_16423601037_26","Муниципальное бюджетное общеобразовательное учреждение «Гимназия п.г.т. Богатые Сабы Сабинского муниципального района Республики Татарстан»",16423601037,"Шигабиев","Фирдус","Фаридович","м","2011-02-20","нет",7,7,27.5,null,27.5,56,"участник","нет","Хайриев Ильнур Зуфарович","Муниципальное бюджетное общеобразовательное учреждение «Гимназия п.г.т. Богатые Сабы Сабинского муниципального района Республики Татарстан»","География"]
[19,"Сабинский","451001_16543028860_26","Муниципальное бюджетное общеобразовательное учреждение «Гимназия п.г.т. Богатые Сабы Сабинского муниципального района Республики Татарстан»",16543028860,"Вилданов","Ислам","Айратович","м","2011-04-20","нет",7,7,16,null,16,56,"участник","нет","Хайриев Ильнур Зуфарович","Муниципальное бюджетное общеобразовательное учреждение «Гимназия п.г.т. Богатые Сабы Сабинского муниципального района Республики Татарстан»","География"]
[20,"Сабинский","452003_19552658009_26","Муниципальное бюджетное общеобразовательное учреждение \"Шеморданский лицей \"Рост\" Сабинского муниципального района Республики Татарстан\"",19552658009,"Амельченков","Матвей","Сергеевич","м","2011-06-07","нет",7,7,21,null,21,56,"участник","нет","Тапайкина Юлия Валерьевна","Муниципальное бюджетное общеобразовательное учреждение \"Шеморданский лицей \"Рост\" Сабинского муниципального района Республики Татарстан\"","География"]
[21,"Сабинский","452003_16766276516_26","Муниципальное бюджетное общеобразовательное учреждение \"Шеморданский лицей \"Рост\" Сабинского муниципального района Республики Татарстан\"",16766276516,"Димитриев","Даниил","Витальевич","м","2011-07-31","нет",7,7,32.5,null,32.5,56,"участник","нет","Тапайкина Юлия Валерьевна","Муниципальное бюджетное общеобразовательное учреждение \"Шеморданский лицей \"Рост\" Сабинского муниципального района Республики Татарстан\"","География"]
[22,"Сабинский","454006_15689410405_26","Муниципальное бюджетное общеобразовательное учреждение \"Юлбатская основная общеобразовательная школа Сабинского муниципального района Республики Татарстан\"",15689410405,"Фатхуллина","Зухра","Габдулловна","ж","2009-12-04","нет",8,8,30,null,{"$f":"N23","v":30},90,"участник","нет","Фаляхова Фирдания Габдулхаковна","Муниципальное бюджетное общеобразовательное учреждение \"Юлбатская основная общеобразовательная школа Сабинского муниципального района Республики Татарстан\"","География"]
[23,"Сабинский","454014_15724962390_26","муниципальное бюджетное общеобразовательное учреждение \"Кильдебякская средняя общеобразовательная школа Сабинского муниципального района Республики Татарстан\"",15724962390,"Ганиев","Ильназ","Ильнурович","м","2009-12-08","нет",8,8,20,null,{"$f":"N24","v":20},90,"участник","нет","Мухарлямов Ренат Габдуллович","муниципальное бюджетное общеобразовательное учреждение \"Кильдебякская средняя общеобразовательная школа Сабинского муниципального района Республики Татарстан\"","География"]
[24,"Сабинский","452012_16192994200_26","Муниципальное бюджетное общеобразовательное учреждение \"Лесхозская средняя общеобразовательная школа Сабинского муниципального района Республики Татарстан\"",16192994200,"Юртеева","Полина","Владимировна","ж","2010-05-22","нет",8,8,37,null,37,90,"участник","нет","Шаймиева \nАйгуль \nТагировна","Муниципальное бюджетное общеобразовательное учреждение \"Лесхозская средняя общеобразовательная школа Сабинского муниципального района Республики Татарстан\"","География"]
[25,"Сабинский","451024_16141992665_26","Муниципальное бюджетное общеобразовательное учреждение \"Сабинская средняя общеобразовательная школа Сабинского муниципального района Республики Татарстан\"",16141992665,"Камолова","Аиша","Баходуровна","ж","2010-07-21","нет",8,8,29,null,29,90,"участник","нет","Аглямзянова Рамзия василовна","Муниципальное бюджетное общеобразовательное учреждение \"Сабинская средняя общеобразовательная школа Сабинского муниципального района Республики Татарстан\"","География"]
[26,"Сабинский","451024_15710988786_26","Муниципальное бюджетное общеобразовательное учреждение \"Сабинская средняя общеобразовательная школа Сабинского муниципального района Республики Татарстан\"",15710988786,"Гумеров","Данияр","Рузалевич","м","2010-01-12","нет",8,8,30,null,30,90,"участник","нет","Аглямзянова Рамзия василовна","Муниципальное бюджетное общеобразовательное учреждение \"Сабинская средняя общеобразовательная школа Сабинского муниципального района Республики Татарстан\"","География"]
[27,"Сабинский","454010_15690914697_26","Муниципальное бюджетное общеобразовательное учреждение \"Мичанская основная общеобразовательная школа Сабинского муниципального района Республики Татарстан\"",15690914697,"Халиков","Булат","Раушанович","м","2009-12-06","нет",8,8,22,null,22,90,"участник","нет","Ахмадиева Алсу Равилевна","Муниципальное бюджетное общеобразовательное учреждение \"Мичанская основная общеобразовательная школа Сабинского муниципального района Республики Татарстан\"","География"]
[28,"Сабинский","454015_15852897622_26","Муниципальное бюджетное общеобразовательное учреждение \"Иштуганская средняя общеобразовательная школа Сабинского муниципального района Республики Татарстан\"",15852897622,"Иванов","Данияр","Валерьевич","м","2010-04-05","нет",8,8,18,null,18,90,"участник","нет","Макаров Анатолий Владимирович","Муниципальное бюджетное общеобразовательное учреждение \"Иштуганская средняя общеобразовательная школа Сабинского муниципального района Республики Татарстан\"","География"]
[29,"Сабинский","454021_15816680391_26","Муниципальное бюджетное общеобразовательное учреждение \"Большешинарская  средняя общеобразовательная школа имени А.А. Ахунзянова Сабинского муниципального района Республики Татарстан\"",15816680391,"Мухутдинов","Айзат","Фанзирович","м","2010-03-03","нет",8,8,22,null,22,90,"участник","нет","Мухаметова Резеда Рашидовна","Муниципальное бюджетное общеобразовательное учреждение \"Большешинарская  средняя общеобразовательная школа имени А.А. Ахунзянова Сабинского муниципального района Республики Татарстан\"","География"]
[30,"Сабинский","454009_15730403845_26","Муниципальное бюджетное общеобразовательное учреждение \"Сатышевская средняя общеобразовательная школа Сабинского муниципального района Республики Татарстан им. Ш.З.Зиннурова\"",15730403845,"Сабиров","Алмаз","Маратович","м","2010-01-15","нет",8,8,40.5,null,40.5,90,"участник","нет","Хасанова Венера Ризвановна","Муниципальное бюджетное общеобразовательное учреждение \"Сатышевская средняя общеобразовательная школа Сабинского муниципального района Республики Татарстан им. Ш.З.Зиннурова\"","География"]
[31,"Сабинский","454008_16364141657_26","Муниципальное бюджетное общеобразовательное учреждение \"Тимершикская средняя общеобразовательная школа Сабинского муниципального района Республики Татарстан\"",15694608306,"Нагимова","Алиса","Айратовна","ж","2009-11-13","нет",8,8,30,null,30,90,"участник","нет","Халилова Диляра Ильнаровна","Муниципальное бюджетное общеобразовательное учреждение \"Тимершикская средняя общеобразовательная школа Сабинского муниципального района Республики Татарстан\"","География"]
[32,"Сабинский","451002_15764856112_26","Муниципальное бюджетное общеобразовательное учреждение «Центр образования «ОНИКС» для одаренных детей» Сабинского муниципального района Республики Татарстан","157-648-561 12","Хуснутдинова","Алина","Ильнуровна","ж","2010-02-12","нет",8,8,39.5,null,39.5,90,"участник","нет","Гумерова Раушания Рифмировна","Муниципальное бюджетное общеобразовательное учреждение «Центр образования «ОНИКС» для одаренных детей» Сабинского муниципального района Республики Татарстан","География"]
[33,"Сабинский","451002_20132267800_26","Муниципальное бюджетное общеобразовательное учреждение «Центр образования «ОНИКС» для одаренных детей» Сабинского муниципального района Республики Татарстан","201-322-678 00","Мухаметшин ","Карим","Айдарович","м","2010-08-26","нет",8,8,17,null,17,90,"участник","нет","Гумерова Раушания Рифмировна","Муниципальное бюджетное общеобразовательное учреждение «Центр образования «ОНИКС» для одаренных детей» Сабинского муниципального района Республики Татарстан","География"]
[34,"Сабинский","454007_17064061646_26","Муниципальное бюджетное общеобразовательное учреждение \"Шикшинская основная общеобразовательная школа Сабинского муниципального района Республики Татарстан\"",17064061646,"Мубаракова","Эльвина","Рузалевна","ж","2010-07-28","нет",8,8,10,null,10,90,"участник","нет","Амиров Фаиль Мияссарович","Муниципальное бюджетное общеобразовательное учреждение \"Шикшинская основная общеобразовательная школа Сабинского муниципального района Республики Татарстан\"","География"]
[35,"Сабинский","454011_15835142875_26","Муниципальное бюджетное общеобразовательное учреждение \"Нижнешитцинская основная общеобразовательная школа Сабинского муниципального района Республики Татарстан\"",15835142875,"Хабибрахманова","Марьям","Анасовна","ж","2010-03-17","нет",8,8,29,null,29,90,"участник","нет","Фаляхова Фирдания Габдулхаковна","Муниципальное бюджетное общеобразовательное учреждение \"Нижнешитцинская основная общеобразовательная школа Сабинского муниципального района Республики Татарстан\"","География"]
[36,"Сабинский","454019_16209780168_26","Муниципальное бюджетное общеобразовательное учреждение \"Верхнесиметская средняя общеобразовательная школа Сабинского муниципального района Республики Татарстан\"",16209780168,"Сагитова","Регина","Фаритовна","ж",40390,"нет",8,8,24,null,24,90,"участник","нет","Шафигуллина Аниса Габдулхамитовна","Муниципальное бюджетное общеобразовательное учреждение \"Верхнесиметская средняя общеобразовательная школа Сабинского муниципального района Республики Татарстан\"","География"]
[37,"Сабинский","454017_15801622447_26","Муниципальное бюджетное общеобразовательное учреждение \"Изминская средняя общеобразовательная школа Сабинского муниципального района Республики Татарстан\"","158-016-224 47","Гатауллин "," Булат ","Азатович","м","2010-02-27","нет",8,8,17,null,17,90,"участник","нет","Каримуллина Эльвира Талгатовна","Муниципальное бюджетное общеобразовательное учреждение \"Изминская средняя общеобразовательная школа Сабинского муниципального района Республики Татарстан\"","География"]
[38,"Сабинский",451002,"Муниципальное бюджетное общеобразовательное учреждение «Центр образования «ОНИКС» для одаренных детей» Сабинского муниципального района Республики Татарстан","157-902-563 89","Гапдерахманов","Инсаф","Искандерович","м","2010-02-10","нет",8,8,41,null,41,90,"участник","нет","Гумерова Раушания Рифмировна","Муниципальное бюджетное общеобразовательное учреждение «Центр образования «ОНИКС» для одаренных детей» Сабинского муниципального района Республики Татарстан","География"]
[39,"Сабинский","454016_16232703840_26","государственное бюджетное общеобразовательное учреждение \"Икшурминская кадетская школа-интернат имени Байкиева К.С.\"",16232703840,"Кабиров","Айтимер","Ильнарович","м","2010-09-08","нет",8,8,17,null,17,90,"участник","нет","Кабирова Гузелия Саматовна","государственное бюджетное общеобразовательное учреждение \"Икшурминская кадетская школа-интернат имени Байкиева К.С.\"","География"]
[40,"Сабинский","451001_15612322533_26","Муниципальное бюджетное общеобразовательное учреждение «Гимназия п.г.т. Богатые Сабы Сабинского муниципального района Республики Татарстан»",15612322533,"Газизов","Алим","Рамилевич","м","2009-10-01","нет",8,8,26,null,26,90,"участник","нет","Рахимова Миляуша Мансуровна","Муниципальное бюджетное общеобразовательное учреждение «Гимназия п.г.т. Богатые Сабы Сабинского муниципального района Республики Татарстан»","География"]
[41,"Сабинский","451001_16056638974_26","Муниципальное бюджетное общеобразовательное учреждение «Гимназия п.г.т. Богатые Сабы Сабинского муниципального района Республики Татарстан»",16056638974,"Халилов","Динияр","Ренатович","м","2010-06-11","нет",8,8,20,null,20,90,"участник","нет","Рахимова Миляуша Мансуровна","Муниципальное бюджетное общеобразовательное учреждение «Гимназия п.г.т. Богатые Сабы Сабинского муниципального района Республики Татарстан»","География"]
[42,"Сабинский","452003_15882237093_26","Муниципальное бюджетное общеобразовательное учреждение \"Шеморданский лицей \"Рост\" Сабинского муниципального района Республики Татарстан\"",15882237093,"Файзрахманов","Карим","Рустемович","м","2010-04-16","нет",8,8,26,null,26,90,"участник","нет","Тапайкина Юлия Валерьевна","Муниципальное бюджетное общеобразовательное учреждение \"Шеморданский лицей \"Рост\" Сабинского муниципального района Республики Татарстан\"","География"]
[43,"Сабинский","452003_16210939645_26","Муниципальное бюджетное общеобразовательное учреждение \"Шеморданский лицей \"Рост\" Сабинского муниципального района Республики Татарстан\"",16210939645,"Михайлов","Радион","Борисович","м","2010-08-25","нет",8,8,10,null,10,90,"участник","нет","Тапайкина Юлия Валерьевна","Муниципальное бюджетное общеобразовательное учреждение \"Шеморданский лицей \"Рост\" Сабинского муниципального района Республики Татарстан\"","География"]
[44,"Сабинский","454006_17407447574_26","Муниципальное бюджетное общеобразовательное учреждение \"Юлбатская основная общеобразовательная школа Сабинского муниципального района Республики Татарстан\"",17407447574,"Хамитова","Флюза","Виловна","ж","2009-03-17","нет",9,9,11.5,null,{"$f":"N45","v":11.5},112,"участник","нет","Фаляхова Фирдания Габдулхаковна","Муниципальное бюджетное общеобразовательное учреждение \"Юлбатская основная общеобразовательная школа Сабинского муниципального района Республики Татарстан\"","География"]
[45,"Сабинский","454023_15702025326_26","Муниципальное бюджетное общеобразовательное учреждение \"Сабабашская основная общеобразовательная школа Сабинского муниципального района Республики Татарстан\"",15702025326,"Шамсутдинова","Ясмина","Флоритовна","ж","2009-03-23","нет",9,9,21,null,{"$f":"N46","v":21},112,"участник","нет","Мухарлямов Рустем Габдуллович","Муниципальное бюджетное общеобразовательное учреждение \"Сабабашская основная общеобразовательная школа Сабинского муниципального района Республики Татарстан\"","География"]
[46,"Сабинский","451024_15689136815_26","Муниципальное бюджетное общеобразовательное учреждение \"Сабинская средняя общеобразовательная школа Сабинского муниципального района Республики Татарстан\"",15689136815,"Гарипов","Фаиль","Ирекович","м","2009-08-04","нет",9,9,19.5,null,19.5,112,"участник","нет","Аглямзянова Рамзия василовна","Муниципальное бюджетное общеобразовательное учреждение \"Сабинская средняя общеобразовательная школа Сабинского муниципального района Республики Татарстан\"","География"]
[47,"Сабинский","451024_15565418988_26","Муниципальное бюджетное общеобразовательное учреждение \"Сабинская средняя общеобразовательная школа Сабинского муниципального района Республики Татарстан\"",15565418988,"Нигъматзянов","Камиль","Фаилевич","м","2009-08-05","нет",9,9,18,null,18,112,"участник","нет","Аглямзянова Рамзия василовна","Муниципальное бюджетное общеобразовательное учреждение \"Сабинская средняя общеобразовательная школа Сабинского муниципального района Республики Татарстан\"","География"]
[48,"Сабинский","454010_15548067887_26","Муниципальное бюджетное общеобразовательное учреждение \"Мичанская основная общеобразовательная школа Сабинского муниципального района Республики Татарстан\"",15548067887,"Тимербаева","Азалия","Рамилевна","ж","2009-07-04","нет",9,9,11,null,11,112,"участник","нет","Ахмадиева Алсу Равилевна","Муниципальное бюджетное общеобразовательное учреждение \"Мичанская основная общеобразовательная школа Сабинского муниципального района Республики Татарстан\"","География"]
[49,"Сабинский","454022_15670634881_26","Муниципальное бюджетное общеобразовательное учреждение \"Большеарташская основная общеобразовательная школа Сабинского муниципального района Республики Татарстан\"",15670634881,"Билалова","Малика","Аязовна","ж","2009-11-27","нет",9,9,27,null,27,112,"участник","нет","Аглямзянова Рамзия Василовна","Муниципальное бюджетное общеобразовательное учреждение \"Большеарташская основная общеобразовательная школа Сабинского муниципального района Республики Татарстан\"","География"]
[50,"Сабинский","451002_15580067467_26","Муниципальное бюджетное общеобразовательное учреждение «Центр образования «ОНИКС» для одаренных детей» Сабинского муниципального района Республики Татарстан","155-800-674 67","Ибрагимов","Мурат","Радикович","м","2009-08-20","нет",9,9,67,null,67,112,"призер","нет","Гумерова Раушания Рифмировна","Муниципальное бюджетное общеобразовательное учреждение «Центр образования «ОНИКС» для одаренных детей» Сабинского муниципального района Республики Татарстан","География"]
[51,"Сабинский","451002_15677190098_26","Муниципальное бюджетное общеобразовательное учреждение «Центр образования «ОНИКС» для одаренных детей» Сабинского муниципального района Республики Татарстан","156-771-900 98","Равилин","Адель","Рустемович","м","2009-11-14","нет",9,9,70,null,70,112,"победитель","нет","Гумерова Раушания Рифмировна","Муниципальное бюджетное общеобразовательное учреждение «Центр образования «ОНИКС» для одаренных детей» Сабинского муниципального района Республики Татарстан","География"]
[52,"Сабинский",null,"Муниципальное бюджетное общеобразовательное учреждение «Центр образования «ОНИКС» для одаренных детей» Сабинского муниципального района Республики Татарстан",15706864489,"Гатауллина","Гульфия","Ильгизаровна","ж","02.01.2009\n","нет",9,9,47,null,47,112,"участник","нет","Гумерова Раушания Рифмировна","Муниципальное бюджетное общеобразовательное учреждение «Центр образования «ОНИКС» для одаренных детей» Сабинского муниципального района Республики Татарстан","География"]
[53,"Сабинский","454011_17437001653_26","Муниципальное бюджетное общеобразовательное учреждение \"Нижнешитцинская основная общеобразовательная школа Сабинского муниципального района Республики Татарстан\"",17437001653,"Мустафина","Аниса","Рустамовна","ж","2009-05-25","нет",9,9,36.5,null,36.5,112,"участник","нет","Фаляхова Фирдания Габдулхаковна","Муниципальное бюджетное общеобразовательное учреждение \"Нижнешитцинская основная общеобразовательная школа Сабинского муниципального района Республики Татарстан\"","География"]
[54,"Сабинский","454016_15711967379_26","государственное бюджетное общеобразовательное учреждение \"Икшурминская кадетская школа-интернат имени Байкиева К.С.\"",15711967379,"Давлиев"," Рустем","Рафисович","м","2010-01-03","нет",9,9,15,null,15,112,"участник","нет","Кабирова Гузелия Саматовна","государственное бюджетное общеобразовательное учреждение \"Икшурминская кадетская школа-интернат имени Байкиева К.С.\"","География"]
[55,"Сабинский","451001_15901339762_26","Муниципальное бюджетное общеобразовательное учреждение «Гимназия п.г.т. Богатые Сабы Сабинского муниципального района Республики Татарстан»",15901339762,"Рахматуллин","Раяз","Зульфатович","м","2008-11-21","нет",9,9,22.5,null,22.5,112,"участник","нет","Сунгатуллина Фарида Ханифовна","Муниципальное бюджетное общеобразовательное учреждение «Гимназия п.г.т. Богатые Сабы Сабинского муниципального района Республики Татарстан»","География"]
[56,"Сабинский","451001_15527653782_26","Муниципальное бюджетное общеобразовательное учреждение «Гимназия п.г.т. Богатые Сабы Сабинского муниципального района Республики Татарстан»",15527653782,"Мухамадиев","Дияз","Ришатович","м","2009-07-03","нет",9,9,26,null,26,112,"участник","нет","Сунгатуллина Фарида Ханифовна","Муниципальное бюджетное общеобразовательное учреждение «Гимназия п.г.т. Богатые Сабы Сабинского муниципального района Республики Татарстан»","География"]
[57,"Сабинский","452003_16155825874_26","Муниципальное бюджетное общеобразовательное учреждение \"Шеморданский лицей \"Рост\" Сабинского муниципального района Республики Татарстан\"",16155825874,"Степанов","Рамин","Андреевич","м","2008-10-08","нет",9,9,28,null,28,112,"участник","нет","Тапайкина Юлия Валерьевна","Муниципальное бюджетное общеобразовательное учреждение \"Шеморданский лицей \"Рост\" Сабинского муниципального района Республики Татарстан\"","География"]
[58,"Сабинский","452003_15565695509_26","Муниципальное бюджетное общеобразовательное учреждение \"Шеморданский лицей \"Рост\" Сабинского муниципального района Республики Татарстан\"",15565695509,"Ганеев","Максим","Олегович","м","2009-08-07","нет",9,9,16,null,16,112,"участник","нет","Тапайкина Юлия Валерьевна","Муниципальное бюджетное общеобразовательное учреждение \"Шеморданский лицей \"Рост\" Сабинского муниципального района Республики Татарстан\"","География"]
[59,"Сабинский","454004_15533554867_26","Муниципальное бюджетное общеобразовательное учреждение \"Евлаштауская средняя общеобразовательная школа Сабинского муниципального района Республики Татарстан\"",15533554867,"Ахунова","Сюмбель","Раисовна","ж","2009-07-03","нет",9,9,36.5,null,36.5,112,"участник","нет","Файзрахманова Нуркия Мухаметхановна","Муниципальное бюджетное общеобразовательное учреждение \"Евлаштауская средняя общеобразовательная школа Сабинского муниципального района Республики Татарстан\"","География"]
[60,"Сабинский","451024_15689136714_26","Муниципальное бюджетное общеобразовательное учреждение \"Сабинская средняя общеобразовательная школа Сабинского муниципального района Республики Татарстан\"",15689136714,"Гарипов","Раниль","Ирекович","м","2008-02-21","нет",10,10,19,null,{"$f":"N61","v":19},127,"участник","нет","Аглямзянова Рамзия василовна","Муниципальное бюджетное общеобразовательное учреждение \"Сабинская средняя общеобразовательная школа Сабинского муниципального района Республики Татарстан\"","География"]
[61,"Сабинский","451024_15836094895_26","Муниципальное бюджетное общеобразовательное учреждение \"Сабинская средняя общеобразовательная школа Сабинского муниципального района Республики Татарстан\"",15836094895,"Загидуллин","Рустем","Робертович","м","2008-01-10","нет",10,10,13.5,null,{"$f":"N62","v":13.5},127,"участник","нет","Аглямзянова Рамзия василовна","Муниципальное бюджетное общеобразовательное учреждение \"Сабинская средняя общеобразовательная школа Сабинского муниципального района Республики Татарстан\"","География"]
[62,"Сабинский","454015_16032129820_26","Муниципальное бюджетное общеобразовательное учреждение \"Иштуганская средняя общеобразовательная школа Сабинского муниципального района Республики Татарстан\"",16032129820,"Халилов","Ильназ","Радимович","м","2008-06-21","нет",10,10,7,null,7,127,"участник","нет","Макаров Анатолий Владимирович","Муниципальное бюджетное общеобразовательное учреждение \"Иштуганская средняя общеобразовательная школа Сабинского муниципального района Республики Татарстан\"","География"]
[63,"Сабинский","454021_14915814077_26","Муниципальное бюджетное общеобразовательное учреждение \"Большешинарская  средняя общеобразовательная школа имени А.А. Ахунзянова Сабинского муниципального района Республики Татарстан\"",14915814077,"Галимова","Гульяз","Фаннуровна","ж","2008-01-18","нет",10,10,18,null,18,127,"участник","нет","Мухаметова Резеда Рашидовна","Муниципальное бюджетное общеобразовательное учреждение \"Большешинарская  средняя общеобразовательная школа имени А.А. Ахунзянова Сабинского муниципального района Республики Татарстан\"","География"]
[64,"Сабинский","454008_16364141657_26","Муниципальное бюджетное общеобразовательное учреждение \"Тимершикская средняя общеобразовательная школа Сабинского муниципального района Республики Татарстан\"",15710267043,"Хазиева","Диляра","Айдаровна","ж","2007-11-05","нет",10,10,15,null,15,127,"участник","нет","Халилова Диляра Ильнаровна","Муниципальное бюджетное общеобразовательное учреждение \"Тимершикская средняя общеобразовательная школа Сабинского муниципального района Республики Татарстан\"","География"]
[65,"Сабинский","451002_15652537275_26","Муниципальное бюджетное общеобразовательное учреждение «Центр образования «ОНИКС» для одаренных детей» Сабинского муниципального района Республики Татарстан","156-525-372 75","Шамсиева","Талия","Талиповна","ж","2008-05-30","нет",10,10,20,null,20,127,"участник","нет","Гумерова Раушания Рифмировна","Муниципальное бюджетное общеобразовательное учреждение «Центр образования «ОНИКС» для одаренных детей» Сабинского муниципального района Республики Татарстан","География"]
[66,"Сабинский","451002_15920556575_26","Муниципальное бюджетное общеобразовательное учреждение «Центр образования «ОНИКС» для одаренных детей» Сабинского муниципального района Республики Татарстан","159-205-565 75","Рахимуллин","Тимерхан","Талгатович","м","2008-10-24","нет",10,10,26,null,26,127,"участник","нет","Гумерова Раушания Рифмировна","Муниципальное бюджетное общеобразовательное учреждение «Центр образования «ОНИКС» для одаренных детей» Сабинского муниципального района Республики Татарстан","География"]
[67,"Сабинский","451001_15809751397_26","Муниципальное бюджетное общеобразовательное учреждение «Гимназия п.г.т. Богатые Сабы Сабинского муниципального района Республики Татарстан»",15809751397,"Хаев","Ильназ","Ильнарович","м","2008-04-09","нет",10,10,25.5,null,25.5,127,"участник","нет","Сунгатуллина Фарида Ханифовна","Муниципальное бюджетное общеобразовательное учреждение «Гимназия п.г.т. Богатые Сабы Сабинского муниципального района Республики Татарстан»","География"]
[68,"Сабинский","451001_15815366582_26","Муниципальное бюджетное общеобразовательное учреждение «Гимназия п.г.т. Богатые Сабы Сабинского муниципального района Республики Татарстан»",15815366582,"Камолов","Камол","Баходурович","м","2008-12-13","нет",10,10,81,null,{"$f":"N69","v":81},127,"победитель","нет","Сунгатуллина Фарида Ханифовна","Муниципальное бюджетное общеобразовательное учреждение «Гимназия п.г.т. Богатые Сабы Сабинского муниципального района Республики Татарстан»","География"]
[69,"Сабинский","454004_15707652580_26","Муниципальное бюджетное общеобразовательное учреждение \"Евлаштауская средняя общеобразовательная школа Сабинского муниципального района Республики Татарстан\"",15707652580,"Габдулхакова","Ильвина","Эльмировна","ж","2008-12-26","нет",10,10,10,null,10,127,"участник","нет","Файзрахманова Нуркыя Мухаметханов-на","Муниципальное бюджетное общеобразовательное учреждение «Евлаштауская средняя общеобразовательная школа  Сабинского муниципального района Республики Татарстан»","география"]
[70,"Сабинский","454014_15820997598_26","муниципальное бюджетное общеобразовательное учреждение \"Кильдебякская средняя общеобразовательная школа Сабинского муниципального района Республики Татарстан\"",15820997598,"Каримуллин","Дамир","Зульфатович","м","2007-05-21","нет",11,11,10,null,{"$f":"N71","v":10},127,"участник","нет","Мухарлямов Ренат Габдуллович","муниципальное бюджетное общеобразовательное учреждение \"Кильдебякская средняя общеобразовательная школа Сабинского муниципального района Республики Татарстан\"","География"]
[71,"Сабинский","452012_15471728477_26","Муниципальное бюджетное общеобразовательное учреждение \"Лесхозская средняя общеобразовательная школа Сабинского муниципального района Республики Татарстан\"",15471728477,"Насибуллина ","Ильвина","Ильгизовна","ж","2007-03-23","нет",11,11,25,null,{"$f":"N72","v":25},129,"участник","нет","Шаймиева \nАйгуль\n Тагировна","Муниципальное бюджетное общеобразовательное учреждение \"Лесхозская средняя общеобразовательная школа Сабинского муниципального района Республики Татарстан\"","География"]
[72,"Сабинский","451024_15796821020_26","Муниципальное бюджетное общеобразовательное учреждение \"Сабинская средняя общеобразовательная школа Сабинского муниципального района Республики Татарстан\"",15796821020,"Хузин","Ильзат","Ильшатович","м","2007-05-14","нет",11,11,17.5,null,17.5,129,"участник","нет","Аглямзянова Рамзия василовна","Муниципальное бюджетное общеобразовательное учреждение \"Сабинская средняя общеобразовательная школа Сабинского муниципального района Республики Татарстан\"","География"]
[73,"Сабинский","454020_15693515294_26","Муниципальное бюджетное общеобразовательное учреждение \"Большекибячинская средняя общеобразовательная школа Сабинского муниципального района Республики Татарстан\"",15693515294,"Хусаенова","Талия","Талгатовна","ж",39224,"нет",11,11,29.5,null,29.5,129,"участник","нет","Сафина Сирина Закизяновна","Муниципальное бюджетное общеобразовательное учреждение \"Большекибячинская средняя общеобразовательная школа Сабинского муниципального района Республики Татарстан\""]
[74,"Сабинский","454017_17517017966_26","Муниципальное бюджетное общеобразовательное учреждение \"Изминская средняя общеобразовательная школа Сабинского муниципального района Республики Татарстан\"","175-170-179 66","Каюмов","Альмир","Дамирович","м","2007-09-09","нет",11,11,26,null,26,129,"участник","нет","Каримуллина Эльвира Талгатовна","Муниципальное бюджетное общеобразовательное учреждение \"Изминская средняя общеобразовательная школа Сабинского муниципального района Республики Татарстан\"","География"]